[Event "Titled Tuesday Blitz January 03 Early 2023"]
[White "Ciuffoletti, Paolo"]
[Black "Donskov, Anatoly"]
[WhiteFideId "807630"]
[BlackFideId "24143413"]
[WhiteElo "2106"]
[BlackElo "2279"]
[Result "0-1"]
[Round "08"]
[TimeControl "180+2"]
[Date "2023.01.03"]
[WhiteClock "0:00:02"]
[BlackClock "0:00:18"]

1. e4 {[%clk 0:03:00]}  c5 {[%clk 0:02:59]} 2. d4 {[%clk 0:02:59]}  cxd4 {[%clk 0:02:58]} 3. c3 {[%clk 0:03:00]}  Nf6 {[%clk 0:02:59]} 4. e5 {[%clk 0:02:59]}  Nd5 {[%clk 0:02:59]} 5. Qxd4 {[%clk 0:02:59]}  e6 {[%clk 0:02:59]} 6. Bc4 {[%clk 0:02:59]}  Nc6 {[%clk 0:02:58]} 7. Qe4 {[%clk 0:02:59]}  Nde7 {[%clk 0:02:45]} 8. Bg5 {[%clk 0:02:48]}  Qc7 {[%clk 0:02:43]} 9. Bxe7 {[%clk 0:02:44]}  Bxe7 {[%clk 0:02:43]} 10. Nf3 {[%clk 0:02:44]}  O-O {[%clk 0:02:37]} 11. O-O {[%clk 0:02:38]}  f5 {[%clk 0:02:35]} 12. exf6 {[%clk 0:02:31]}  Bxf6 {[%clk 0:02:35]} 13. Bd3 {[%clk 0:02:29]}  g6 {[%clk 0:02:33]} 14. Nbd2 {[%clk 0:02:14]}  d5 {[%clk 0:02:32]} 15. Qe2 {[%clk 0:02:14]}  e5 {[%clk 0:02:32]} 16. Bc2 {[%clk 0:01:37]}  e4 {[%clk 0:02:14]} 17. Ne1 {[%clk 0:01:34]}  Bf5 {[%clk 0:02:10]} 18. Bb3 {[%clk 0:01:30]}  Qe5 {[%clk 0:01:59]} 19. Qb5 {[%clk 0:01:16]}  Rad8 {[%clk 0:01:51]} 20. Nc2 {[%clk 0:01:10]}  Bg5 {[%clk 0:01:37]} 21. Ne3 {[%clk 0:01:02]}  Bxe3 {[%clk 0:01:09]} 22. fxe3 {[%clk 0:01:02]}  Rd7 {[%clk 0:01:09]} 23. Rf4 {[%clk 0:00:41]}  a6 {[%clk 0:01:05]} 24. Qc5 {[%clk 0:00:31]}  Re8 {[%clk 0:00:57]} 25. Raf1 {[%clk 0:00:30]}  Kg7 {[%clk 0:00:56]} 26. h3 {[%clk 0:00:28]}  Qe7 {[%clk 0:00:50]} 27. Qxe7+ {[%clk 0:00:23]}  Rexe7 {[%clk 0:00:50]} 28. g4 {[%clk 0:00:22]}  Be6 {[%clk 0:00:51]} 29. Bc2 {[%clk 0:00:18]}  Ne5 {[%clk 0:00:46]} 30. Kg2 {[%clk 0:00:18]}  g5 {[%clk 0:00:41]} 31. Rf6 {[%clk 0:00:16]}  Nf3 {[%clk 0:00:39]} 32. Nxf3 {[%clk 0:00:16]}  Kxf6 {[%clk 0:00:39]} 33. Nd4+ {[%clk 0:00:15]}  Kg6 {[%clk 0:00:37]} 34. Bb3 {[%clk 0:00:15]}  h6 {[%clk 0:00:27]} 35. Rf8 {[%clk 0:00:14]}  Bf7 {[%clk 0:00:19]} 36. Nf5 {[%clk 0:00:12]}  Re8 {[%clk 0:00:20]} 37. Rxe8 {[%clk 0:00:09]}  Bxe8 {[%clk 0:00:21]} 38. Kg3 {[%clk 0:00:08]}  h5 {[%clk 0:00:21]} 39. a4 {[%clk 0:00:05]}  h4+ {[%clk 0:00:21]} 40. Kg2 {[%clk 0:00:05]}  Bf7 {[%clk 0:00:20]} 41. a5 {[%clk 0:00:04]}  Be6 {[%clk 0:00:20]} 42. Nd4 {[%clk 0:00:04]}  Kf7 {[%clk 0:00:20]} 43. Ba4 {[%clk 0:00:03]}  Rc7 {[%clk 0:00:19]} 44. Bc2 {[%clk 0:00:02]}  Rc5 {[%clk 0:00:18]} 0-1


[Site "https://www.chess.com"]

[Event "Titled Tuesday Blitz January 03 Early 2023"]
[White "Ardila, Oscar Humberto"]
[Black "Qashashvili, Alexandre"]
[WhiteFideId "4404742"]
[BlackFideId "13600842"]
[WhiteElo "1982"]
[BlackElo "2505"]
[Result "1/2-1/2"]
[Round "08"]
[TimeControl "180+2"]
[Date "2023.01.03"]
[WhiteClock "0:00:08"]
[BlackClock "0:00:05"]

1. d4 {[%clk 0:02:59]}  c6 {[%clk 0:02:59]} 2. c4 {[%clk 0:02:59]}  d5 {[%clk 0:03:00]} 3. Nf3 {[%clk 0:02:58]}  Nf6 {[%clk 0:02:59]} 4. cxd5 {[%clk 0:02:58]}  cxd5 {[%clk 0:02:58]} 5. Nc3 {[%clk 0:02:59]}  Nc6 {[%clk 0:02:58]} 6. Bf4 {[%clk 0:02:59]}  e6 {[%clk 0:02:56]} 7. e3 {[%clk 0:02:59]}  Bd6 {[%clk 0:02:56]} 8. Bxd6 {[%clk 0:02:57]}  Qxd6 {[%clk 0:02:57]} 9. Be2 {[%clk 0:02:57]}  O-O {[%clk 0:02:56]} 10. O-O {[%clk 0:02:57]}  h6 {[%clk 0:02:47]} 11. Rc1 {[%clk 0:02:57]}  a6 {[%clk 0:02:47]} 12. Na4 {[%clk 0:02:57]}  e5 {[%clk 0:02:47]} 13. dxe5 {[%clk 0:02:54]}  Nxe5 {[%clk 0:02:48]} 14. Nd4 {[%clk 0:02:50]}  Bd7 {[%clk 0:02:43]} 15. Nc5 {[%clk 0:02:46]}  b5 {[%clk 0:02:32]} 16. Nd3 {[%clk 0:02:40]}  Nxd3 {[%clk 0:02:30]} 17. Bxd3 {[%clk 0:02:37]}  Ng4 {[%clk 0:02:29]} 18. Nf3 {[%clk 0:02:35]}  Rac8 {[%clk 0:02:24]} 19. h3 {[%clk 0:02:34]}  Rxc1 {[%clk 0:02:22]} 20. Qxc1 {[%clk 0:02:34]}  Rc8 {[%clk 0:02:23]} 21. Qd2 {[%clk 0:02:13]}  Ne5 {[%clk 0:02:22]} 22. Nxe5 {[%clk 0:02:09]}  Qxe5 {[%clk 0:02:23]} 23. Be2 {[%clk 0:02:09]}  Be6 {[%clk 0:02:16]} 24. Rd1 {[%clk 0:02:04]}  Qe4 {[%clk 0:01:55]} 25. Bd3 {[%clk 0:01:55]}  Qa4 {[%clk 0:01:48]} 26. Bb1 {[%clk 0:01:23]}  Qc4 {[%clk 0:01:26]} 27. Qd3 {[%clk 0:01:19]}  Qxd3 {[%clk 0:01:21]} 28. Bxd3 {[%clk 0:01:19]}  Kf8 {[%clk 0:01:17]} 29. Bb1 {[%clk 0:01:17]}  Ke7 {[%clk 0:01:13]} 30. Kf1 {[%clk 0:01:17]}  Rc4 {[%clk 0:01:08]} 31. Ke1 {[%clk 0:01:14]}  Rb4 {[%clk 0:01:07]} 32. Rd2 {[%clk 0:01:13]}  Rc4 {[%clk 0:01:01]} 33. Kd1 {[%clk 0:01:12]}  g6 {[%clk 0:00:59]} 34. Bd3 {[%clk 0:01:12]}  Rc6 {[%clk 0:00:51]} 35. Bb1 {[%clk 0:01:05]}  Rc5 {[%clk 0:00:42]} 36. a3 {[%clk 0:01:03]}  a5 {[%clk 0:00:41]} 37. Ba2 {[%clk 0:00:57]}  d4 {[%clk 0:00:27]} 38. Bxe6 {[%clk 0:00:55]}  dxe3 {[%clk 0:00:27]} 39. fxe3 {[%clk 0:00:47]}  Kxe6 {[%clk 0:00:26]} 40. Ke2 {[%clk 0:00:45]}  Rd5 {[%clk 0:00:23]} 41. Rc2 {[%clk 0:00:45]}  a4 {[%clk 0:00:22]} 42. Rc6+ {[%clk 0:00:41]}  Ke5 {[%clk 0:00:21]} 43. Rc7 {[%clk 0:00:41]}  f5 {[%clk 0:00:20]} 44. Re7+ {[%clk 0:00:40]}  Kf6 {[%clk 0:00:20]} 45. Rh7 {[%clk 0:00:40]}  h5 {[%clk 0:00:20]} 46. Rh8 {[%clk 0:00:39]}  Rc5 {[%clk 0:00:20]} 47. Kd2 {[%clk 0:00:39]}  Rc4 {[%clk 0:00:17]} 48. Rb8 {[%clk 0:00:36]}  Rc5 {[%clk 0:00:16]} 49. Rb6+ {[%clk 0:00:35]}  Kg5 {[%clk 0:00:16]} 50. h4+ {[%clk 0:00:33]}  Kxh4 {[%clk 0:00:16]} 51. Rxg6 {[%clk 0:00:34]}  Rd5+ {[%clk 0:00:15]} 52. Ke2 {[%clk 0:00:34]}  Re5 {[%clk 0:00:15]} 53. Kf3 {[%clk 0:00:26]}  Rc5 {[%clk 0:00:13]} 54. Rb6 {[%clk 0:00:26]}  Kg5 {[%clk 0:00:12]} 55. g3 {[%clk 0:00:24]}  Rd5 {[%clk 0:00:11]} 56. Rb8 {[%clk 0:00:23]}  Rd6 {[%clk 0:00:11]} 57. Rxb5 {[%clk 0:00:22]}  Rd2 {[%clk 0:00:11]} 58. e4 {[%clk 0:00:21]}  Rd3+ {[%clk 0:00:11]} 59. Ke2 {[%clk 0:00:21]}  Rxg3 {[%clk 0:00:10]} 60. Rxf5+ {[%clk 0:00:21]}  Kg6 {[%clk 0:00:10]} 61. Ra5 {[%clk 0:00:20]}  Rb3 {[%clk 0:00:10]} 62. Rxa4 {[%clk 0:00:19]}  Rxb2+ {[%clk 0:00:10]} 63. Kf3 {[%clk 0:00:20]}  h4 {[%clk 0:00:11]} 64. e5 {[%clk 0:00:18]}  h3 {[%clk 0:00:11]} 65. Rh4 {[%clk 0:00:17]}  h2 {[%clk 0:00:11]} 66. Ke4 {[%clk 0:00:15]}  Kg5 {[%clk 0:00:10]} 67. Rh8 {[%clk 0:00:13]}  Ra2 {[%clk 0:00:09]} 68. e6 {[%clk 0:00:11]}  Rxa3 {[%clk 0:00:09]} 69. Rxh2 {[%clk 0:00:08]}  Kf6 {[%clk 0:00:08]} 70. Kd5 {[%clk 0:00:08]}  Rd3+ {[%clk 0:00:07]} 71. Ke4 {[%clk 0:00:06]}  Rd1 {[%clk 0:00:06]} 72. Rh6+ {[%clk 0:00:06]}  Ke7 {[%clk 0:00:07]} 73. Ke5 {[%clk 0:00:05]}  Re1+ {[%clk 0:00:07]} 74. Kf5 {[%clk 0:00:06]}  Rf1+ {[%clk 0:00:07]} 75. Ke5 {[%clk 0:00:06]}  Re1+ {[%clk 0:00:07]} 76. Kd5 {[%clk 0:00:07]}  Rd1+ {[%clk 0:00:07]} 77. Ke4 {[%clk 0:00:07]}  Ke8 {[%clk 0:00:07]} 78. Rh7 {[%clk 0:00:06]}  Rg1 {[%clk 0:00:05]} 79. Kf5 {[%clk 0:00:06]}  Re1 {[%clk 0:00:05]} 80. Kf6 {[%clk 0:00:06]}  Rf1+ {[%clk 0:00:05]} 81. Ke5 {[%clk 0:00:07]}  Re1+ {[%clk 0:00:06]} 82. Kd6 {[%clk 0:00:07]}  Rd1+ {[%clk 0:00:06]} 83. Kc6 {[%clk 0:00:07]}  Rd2 {[%clk 0:00:05]} 84. Kc5 {[%clk 0:00:07]}  Rd1 {[%clk 0:00:05]} 85. Kc6 {[%clk 0:00:08]}  Rd2 {[%clk 0:00:06]} 86. Kc7 {[%clk 0:00:08]}  Rd1 {[%clk 0:00:06]} 87. Rd7 {[%clk 0:00:08]}  Rc1+ {[%clk 0:00:05]} 88. Kd6 {[%clk 0:00:08]}  Rd1+ {[%clk 0:00:05]} 89. Kc7 {[%clk 0:00:08]}  Rc1+ {[%clk 0:00:05]} 90. Kd6 {[%clk 0:00:08]}  Rd1+ {[%clk 0:00:05]} 91. Kc7 {[%clk 0:00:08]} 1/2-1/2


[Site "https://www.chess.com"]

[Event "Titled Tuesday Blitz January 03 Early 2023"]
[White "Zaichenko, Daria"]
[Black "Fabris, Alberto"]
[WhiteFideId "4197453"]
[BlackFideId "801348"]
[WhiteElo "2104"]
[BlackElo "2230"]
[Result "0-1"]
[Round "08"]
[TimeControl "180+2"]
[Date "2023.01.03"]
[WhiteClock "0:00:01"]
[BlackClock "0:00:49"]

1. e4 {[%clk 0:02:56]}  c5 {[%clk 0:02:59]} 2. Nf3 {[%clk 0:02:55]}  d6 {[%clk 0:03:00]} 3. d4 {[%clk 0:02:56]}  cxd4 {[%clk 0:03:01]} 4. Nxd4 {[%clk 0:02:56]}  Nf6 {[%clk 0:03:01]} 5. Nc3 {[%clk 0:02:55]}  a6 {[%clk 0:03:01]} 6. Be2 {[%clk 0:02:40]}  e5 {[%clk 0:03:00]} 7. Nb3 {[%clk 0:02:39]}  Be7 {[%clk 0:03:00]} 8. Be3 {[%clk 0:02:39]}  Be6 {[%clk 0:02:58]} 9. O-O {[%clk 0:02:38]}  Nbd7 {[%clk 0:02:55]} 10. a4 {[%clk 0:02:37]}  Qc7 {[%clk 0:02:54]} 11. Kh1 {[%clk 0:02:34]}  O-O {[%clk 0:02:53]} 12. f4 {[%clk 0:02:31]}  Bc4 {[%clk 0:02:41]} 13. Nd5 {[%clk 0:02:19]}  Nxd5 {[%clk 0:02:40]} 14. exd5 {[%clk 0:02:20]}  Bf6 {[%clk 0:02:32]} 15. fxe5 {[%clk 0:02:10]}  Nxe5 {[%clk 0:02:29]} 16. Rxf6 {[%clk 0:02:05]}  gxf6 {[%clk 0:02:28]} 17. Bh6 {[%clk 0:02:05]}  Rfe8 {[%clk 0:02:22]} 18. Bh5 {[%clk 0:02:00]}  Bxb3 {[%clk 0:02:14]} 19. Qf1 {[%clk 0:01:44]}  Qe7 {[%clk 0:02:09]} 20. Re1 {[%clk 0:01:39]}  Bxc2 {[%clk 0:01:56]} 21. Qe2 {[%clk 0:01:01]}  Bg6 {[%clk 0:01:54]} 22. Bf3 {[%clk 0:00:52]}  Rac8 {[%clk 0:01:51]} 23. h4 {[%clk 0:00:50]}  Rc2 {[%clk 0:01:47]} 24. Qd1 {[%clk 0:00:45]}  Qc7 {[%clk 0:01:36]} 25. h5 {[%clk 0:00:37]}  Bf5 {[%clk 0:01:33]} 26. Be4 {[%clk 0:00:32]}  Bxe4 {[%clk 0:01:29]} 27. Rxe4 {[%clk 0:00:30]}  Kh8 {[%clk 0:01:26]} 28. Qf3 {[%clk 0:00:09]}  Qe7 {[%clk 0:01:20]} 29. Qf5 {[%clk 0:00:06]}  Rxb2 {[%clk 0:01:07]} 30. Re3 {[%clk 0:00:05]}  Rg8 {[%clk 0:01:04]} 31. g4 {[%clk 0:00:03]}  Rb4 {[%clk 0:00:57]} 32. Rg3 {[%clk 0:00:01]}  Rbxg4 {[%clk 0:00:51]} 33. Rxg4 {[%clk 0:00:01]}  Rxg4 {[%clk 0:00:50]} 34. Qc8+ {[%clk 0:00:01]}  Rg8 {[%clk 0:00:49]} 0-1


[Site "https://www.chess.com"]

[Event "Titled Tuesday Blitz January 03 Early 2023"]
[White "Ivanova, Karina"]
[Black "Wilson, Elvin"]
[WhiteFideId "24139750"]
[BlackFideId "2014874"]
[WhiteElo "2085"]
[BlackElo "2183"]
[Result "1-0"]
[Round "08"]
[TimeControl "180+2"]
[Date "2023.01.03"]
[WhiteClock "0:00:04"]
[BlackClock "0:00:08"]

1. Nf3 {[%clk 0:02:59]}  Nf6 {[%clk 0:02:58]} 2. g3 {[%clk 0:02:59]}  c5 {[%clk 0:02:55]} 3. c4 {[%clk 0:02:59]}  e6 {[%clk 0:02:55]} 4. d4 {[%clk 0:02:58]}  cxd4 {[%clk 0:02:54]} 5. Nxd4 {[%clk 0:02:58]}  Bb4+ {[%clk 0:02:37]} 6. Bd2 {[%clk 0:02:57]}  Be7 {[%clk 0:02:36]} 7. Bg2 {[%clk 0:02:51]}  Nc6 {[%clk 0:02:35]} 8. Bc3 {[%clk 0:02:47]}  O-O {[%clk 0:02:34]} 9. O-O {[%clk 0:02:45]}  d5 {[%clk 0:02:29]} 10. Nxc6 {[%clk 0:02:42]}  bxc6 {[%clk 0:02:28]} 11. e3 {[%clk 0:02:28]}  a5 {[%clk 0:02:22]} 12. Nd2 {[%clk 0:02:25]}  Ba6 {[%clk 0:02:22]} 13. Qa4 {[%clk 0:02:22]}  Bb7 {[%clk 0:02:12]} 14. Rfd1 {[%clk 0:02:17]}  Qb6 {[%clk 0:02:09]} 15. Rac1 {[%clk 0:02:03]}  Rfc8 {[%clk 0:02:00]} 16. Nb3 {[%clk 0:02:00]}  Bb4 {[%clk 0:01:45]} 17. c5 {[%clk 0:01:55]}  Qb5 {[%clk 0:01:36]} 18. Qxb5 {[%clk 0:01:49]}  cxb5 {[%clk 0:01:36]} 19. Bxf6 {[%clk 0:01:26]}  gxf6 {[%clk 0:01:35]} 20. a3 {[%clk 0:01:26]}  a4 {[%clk 0:01:35]} 21. axb4 {[%clk 0:01:22]}  axb3 {[%clk 0:01:35]} 22. Bf1 {[%clk 0:01:20]}  Bc6 {[%clk 0:01:32]} 23. Ra1 {[%clk 0:01:19]}  Ra2 {[%clk 0:01:32]} 24. Rxa2 {[%clk 0:01:14]}  bxa2 {[%clk 0:01:32]} 25. Ra1 {[%clk 0:01:12]}  Ra8 {[%clk 0:01:31]} 26. Bd3 {[%clk 0:01:12]}  Ra4 {[%clk 0:01:22]} 27. Bc2 {[%clk 0:01:11]}  Rxb4 {[%clk 0:01:16]} 28. b3 {[%clk 0:01:09]}  d4 {[%clk 0:01:06]} 29. exd4 {[%clk 0:01:08]}  Rxd4 {[%clk 0:01:04]} 30. Rxa2 {[%clk 0:01:07]}  b4 {[%clk 0:00:49]} 31. Ra6 {[%clk 0:00:58]}  Bf3 {[%clk 0:00:48]} 32. Ra2 {[%clk 0:00:49]}  Kg7 {[%clk 0:00:32]} 33. Kf1 {[%clk 0:00:43]}  Rd5 {[%clk 0:00:25]} 34. Ra5 {[%clk 0:00:40]}  Rd2 {[%clk 0:00:23]} 35. Ra2 {[%clk 0:00:39]}  f5 {[%clk 0:00:18]} 36. h4 {[%clk 0:00:35]}  Kf6 {[%clk 0:00:17]} 37. Ke1 {[%clk 0:00:32]}  Re2+ {[%clk 0:00:17]} 38. Kf1 {[%clk 0:00:31]}  Re5 {[%clk 0:00:17]} 39. Ra5 {[%clk 0:00:29]}  Rd5 {[%clk 0:00:17]} 40. Ke1 {[%clk 0:00:26]}  Re5+ {[%clk 0:00:16]} 41. Kd2 {[%clk 0:00:20]}  Re2+ {[%clk 0:00:14]} 42. Kd3 {[%clk 0:00:20]}  Rxf2 {[%clk 0:00:14]} 43. Ke3 {[%clk 0:00:19]}  Rxc2 {[%clk 0:00:12]} 44. Kxf3 {[%clk 0:00:19]}  Rc3+ {[%clk 0:00:12]} 45. Kf4 {[%clk 0:00:18]}  Rxb3 {[%clk 0:00:13]} 46. Rb5 {[%clk 0:00:18]}  Rc3 {[%clk 0:00:13]} 47. Rxb4 {[%clk 0:00:18]}  Rxc5 {[%clk 0:00:14]} 48. Rb6 {[%clk 0:00:15]}  Rc3 {[%clk 0:00:13]} 49. Ra6 {[%clk 0:00:13]}  h6 {[%clk 0:00:13]} 50. h5 {[%clk 0:00:11]}  Rc4+ {[%clk 0:00:13]} 51. Kf3 {[%clk 0:00:10]}  Rg4 {[%clk 0:00:13]} 52. Ra8 {[%clk 0:00:04]}  Rg5 {[%clk 0:00:13]} 53. Rh8 {[%clk 0:00:04]}  Rxh5 {[%clk 0:00:13]} 54. g4 {[%clk 0:00:04]}  fxg4+ {[%clk 0:00:13]} 55. Kxg4 {[%clk 0:00:04]}  Rg5+ {[%clk 0:00:13]} 56. Kf4 {[%clk 0:00:04]}  h5 {[%clk 0:00:14]} 57. Rh6+ {[%clk 0:00:04]}  Kg7 {[%clk 0:00:13]} 58. Kxg5 {[%clk 0:00:04]}  e5 {[%clk 0:00:09]} 59. Rxh5 {[%clk 0:00:04]}  f6+ {[%clk 0:00:08]} 60. Kf5 {[%clk 0:00:04]} 1-0


[Site "https://www.chess.com"]

[Event "Titled Tuesday Blitz January 03 Early 2023"]
[White "Osiecki, Stanislaw"]
[Black "Martin, Lewis"]
[WhiteFideId "1102990"]
[BlackFideId "410551"]
[WhiteElo "2055"]
[BlackElo "2135"]
[Result "1-0"]
[Round "08"]
[TimeControl "180+2"]
[Date "2023.01.03"]
[WhiteClock "0:01:38"]
[BlackClock "0:01:11"]

1. e4 {[%clk 0:03:00]}  c5 {[%clk 0:02:30]} 2. c3 {[%clk 0:02:54]}  d5 {[%clk 0:02:29]} 3. e5 {[%clk 0:02:54]}  d4 {[%clk 0:02:29]} 4. Bc4 {[%clk 0:02:53]}  e6 {[%clk 0:02:23]} 5. Nf3 {[%clk 0:02:53]}  Nc6 {[%clk 0:02:23]} 6. O-O {[%clk 0:02:53]}  g6 {[%clk 0:02:19]} 7. d3 {[%clk 0:02:53]}  Bg7 {[%clk 0:02:18]} 8. Bf4 {[%clk 0:02:51]}  Nge7 {[%clk 0:02:18]} 9. Re1 {[%clk 0:02:51]}  O-O {[%clk 0:02:18]} 10. Nbd2 {[%clk 0:02:49]}  a6 {[%clk 0:02:15]} 11. a4 {[%clk 0:02:49]}  Rb8 {[%clk 0:02:15]} 12. Ne4 {[%clk 0:02:46]}  b5 {[%clk 0:02:12]} 13. axb5 {[%clk 0:02:43]}  axb5 {[%clk 0:02:13]} 14. Bb3 {[%clk 0:02:42]}  Qb6 {[%clk 0:02:09]} 15. Nf6+ {[%clk 0:02:36]}  Kh8 {[%clk 0:02:06]} 16. Qd2 {[%clk 0:02:36]}  Bb7 {[%clk 0:01:44]} 17. Bh6 {[%clk 0:02:33]}  Nf5 {[%clk 0:01:43]} 18. Bxg7+ {[%clk 0:02:33]}  Kxg7 {[%clk 0:01:42]} 19. Nd7 {[%clk 0:02:06]}  Qc7 {[%clk 0:01:39]} 20. Nxb8 {[%clk 0:02:04]}  Rxb8 {[%clk 0:01:39]} 21. Qg5 {[%clk 0:02:00]}  Nce7 {[%clk 0:01:29]} 22. Qf6+ {[%clk 0:01:57]}  Kg8 {[%clk 0:01:29]} 23. Ng5 {[%clk 0:01:49]}  Rf8 {[%clk 0:01:22]} 24. Nxe6 {[%clk 0:01:39]}  fxe6 {[%clk 0:01:11]} 25. Bxe6+ {[%clk 0:01:38]} 1-0


[Site "https://www.chess.com"]

[Event "Titled Tuesday Blitz January 03 Early 2023"]
[White "Lauridsen, Jesper Morch"]
[Black "Tuleyeva-Aketayeva, Dana"]
[WhiteFideId "1401890"]
[BlackFideId "13701932"]
[WhiteElo "2309"]
[BlackElo "2130"]
[Result "1-0"]
[Round "08"]
[TimeControl "180+2"]
[Date "2023.01.03"]
[WhiteClock "0:00:42"]
[BlackClock "0:00:01"]

1. e4 {[%clk 0:02:57]}  c5 {[%clk 0:02:58]} 2. Nf3 {[%clk 0:02:56]}  Nc6 {[%clk 0:02:58]} 3. d4 {[%clk 0:02:56]}  cxd4 {[%clk 0:02:59]} 4. Nxd4 {[%clk 0:02:57]}  g6 {[%clk 0:03:00]} 5. c4 {[%clk 0:02:56]}  Bg7 {[%clk 0:02:59]} 6. Be3 {[%clk 0:02:57]}  Nf6 {[%clk 0:03:00]} 7. Nc3 {[%clk 0:02:57]}  O-O {[%clk 0:03:00]} 8. Be2 {[%clk 0:02:56]}  d6 {[%clk 0:03:00]} 9. O-O {[%clk 0:02:55]}  Bd7 {[%clk 0:02:59]} 10. Qd2 {[%clk 0:02:55]}  Ng4 {[%clk 0:02:57]} 11. Bxg4 {[%clk 0:02:54]}  Bxg4 {[%clk 0:02:56]} 12. f3 {[%clk 0:02:54]}  Bd7 {[%clk 0:02:48]} 13. Rad1 {[%clk 0:02:55]}  Rc8 {[%clk 0:02:47]} 14. Kh1 {[%clk 0:02:52]}  b6 {[%clk 0:02:24]} 15. b3 {[%clk 0:02:51]}  a6 {[%clk 0:02:02]} 16. Nd5 {[%clk 0:02:50]}  e6 {[%clk 0:01:55]} 17. Nxc6 {[%clk 0:02:44]}  Rxc6 {[%clk 0:01:52]} 18. Nxb6 {[%clk 0:02:37]}  Rxb6 {[%clk 0:01:51]} 19. Bxb6 {[%clk 0:02:37]}  Qxb6 {[%clk 0:01:52]} 20. Qxd6 {[%clk 0:02:37]}  Bc6 {[%clk 0:01:45]} 21. c5 {[%clk 0:02:28]}  Qb7 {[%clk 0:01:44]} 22. e5 {[%clk 0:02:15]}  Rc8 {[%clk 0:01:40]} 23. Rd4 {[%clk 0:02:13]}  Bb5 {[%clk 0:01:32]} 24. Rfd1 {[%clk 0:02:09]}  Bf8 {[%clk 0:01:30]} 25. Qb6 {[%clk 0:02:03]}  Qe7 {[%clk 0:00:49]} 26. b4 {[%clk 0:01:58]}  h5 {[%clk 0:00:20]} 27. Rd8 {[%clk 0:01:55]}  Rc6 {[%clk 0:00:16]} 28. Qb8 {[%clk 0:01:50]}  Kg7 {[%clk 0:00:13]} 29. R1d7 {[%clk 0:01:42]}  Qg5 {[%clk 0:00:12]} 30. Rxf7+ {[%clk 0:01:42]}  Kh6 {[%clk 0:00:07]} 31. Rd1 {[%clk 0:01:14]}  Bg7 {[%clk 0:00:07]} 32. f4 {[%clk 0:00:58]}  Qg4 {[%clk 0:00:06]} 33. Qd8 {[%clk 0:00:53]}  Rc8 {[%clk 0:00:04]} 34. Qd2 {[%clk 0:00:44]}  Ba4 {[%clk 0:00:01]} 35. f5+ {[%clk 0:00:42]} 1-0


[Site "https://www.chess.com"]

[Event "Titled Tuesday Blitz January 03 Early 2023"]
[White "Gholami Orimi, Mahdi"]
[Black "Dos Santos, Emmanuel"]
[WhiteFideId "12558486"]
[BlackFideId "2103559"]
[WhiteElo "2420"]
[BlackElo "2261"]
[Result "1-0"]
[Round "08"]
[TimeControl "180+2"]
[Date "2023.01.03"]
[WhiteClock "0:00:57"]
[BlackClock "0:00:01"]

1. c4 {[%clk 0:02:54]}  d5 {[%clk 0:02:53]} 2. cxd5 {[%clk 0:02:53]}  Nf6 {[%clk 0:02:44]} 3. Nc3 {[%clk 0:02:49]}  c6 {[%clk 0:02:36]} 4. dxc6 {[%clk 0:02:48]}  Nxc6 {[%clk 0:02:35]} 5. g3 {[%clk 0:02:48]}  g6 {[%clk 0:02:36]} 6. Bg2 {[%clk 0:02:48]}  Bg7 {[%clk 0:02:37]} 7. d3 {[%clk 0:02:49]}  O-O {[%clk 0:02:37]} 8. Nf3 {[%clk 0:02:50]}  Nd4 {[%clk 0:02:37]} 9. O-O {[%clk 0:02:49]}  Bg4 {[%clk 0:02:37]} 10. Nxd4 {[%clk 0:02:49]}  Qxd4 {[%clk 0:02:37]} 11. Bxb7 {[%clk 0:02:49]}  Bh3 {[%clk 0:02:35]} 12. Bg2 {[%clk 0:02:42]}  Bxg2 {[%clk 0:02:34]} 13. Kxg2 {[%clk 0:02:43]}  Nh5 {[%clk 0:02:32]} 14. Be3 {[%clk 0:02:42]}  Qb4 {[%clk 0:02:28]} 15. Rb1 {[%clk 0:02:42]}  Rad8 {[%clk 0:02:26]} 16. Qb3 {[%clk 0:02:39]}  Qd6 {[%clk 0:02:22]} 17. Bxa7 {[%clk 0:02:36]}  Qe5 {[%clk 0:02:19]} 18. Be3 {[%clk 0:02:35]}  Kh8 {[%clk 0:02:17]} 19. Qb5 {[%clk 0:02:34]}  Qe6 {[%clk 0:02:16]} 20. Qc4 {[%clk 0:02:34]}  Qe5 {[%clk 0:02:13]} 21. Qe4 {[%clk 0:02:34]}  Qa5 {[%clk 0:02:12]} 22. b4 {[%clk 0:02:29]}  Qc7 {[%clk 0:02:11]} 23. Nb5 {[%clk 0:02:27]}  Qd7 {[%clk 0:02:09]} 24. a4 {[%clk 0:02:27]}  f5 {[%clk 0:02:09]} 25. Qc4 {[%clk 0:02:12]}  f4 {[%clk 0:02:08]} 26. Bc5 {[%clk 0:02:12]}  Rf5 {[%clk 0:01:54]} 27. g4 {[%clk 0:01:45]}  Rg5 {[%clk 0:01:31]} 28. f3 {[%clk 0:01:44]}  Nf6 {[%clk 0:01:15]} 29. h3 {[%clk 0:01:25]}  Nxg4 {[%clk 0:01:07]} 30. fxg4 {[%clk 0:01:08]}  Rxg4+ {[%clk 0:01:07]} 31. Kf2 {[%clk 0:01:08]}  Rg3 {[%clk 0:00:41]} 32. Qxf4 {[%clk 0:01:05]}  Rf8 {[%clk 0:00:21]} 33. Qxf8+ {[%clk 0:01:04]}  Bxf8 {[%clk 0:00:20]} 34. Kxg3 {[%clk 0:01:04]}  Bg7 {[%clk 0:00:18]} 35. Rf3 {[%clk 0:01:05]}  Be5+ {[%clk 0:00:18]} 36. Kg2 {[%clk 0:01:05]}  Qd5 {[%clk 0:00:16]} 37. Rf1 {[%clk 0:01:05]}  Bf6 {[%clk 0:00:14]} 38. Rf2 {[%clk 0:00:59]}  Qb3 {[%clk 0:00:12]} 39. a5 {[%clk 0:00:59]}  Qa4 {[%clk 0:00:12]} 40. Na7 {[%clk 0:00:58]}  h5 {[%clk 0:00:11]} 41. Rxf6 {[%clk 0:00:58]}  exf6 {[%clk 0:00:11]} 42. Rxf6 {[%clk 0:00:59]}  Qd1 {[%clk 0:00:05]} 43. Re6 {[%clk 0:00:59]}  h4 {[%clk 0:00:03]} 44. Bf2 {[%clk 0:00:57]}  Qb3 {[%clk 0:00:01]} 45. Re4 {[%clk 0:00:57]}  Qd5 {[%clk 0:00:01]} 46. Bxh4 {[%clk 0:00:57]}  g5 {[%clk 0:00:01]} 47. Bf2 {[%clk 0:00:58]}  Qb7 {[%clk 0:00:01]} 48. b5 {[%clk 0:00:58]}  Qxa7 {[%clk 0:00:01]} 49. Bxa7 {[%clk 0:00:57]} 1-0


[Site "https://www.chess.com"]